Workbook

Sheet Proposed Tax Calculator
C1: General | E1: Monthly Salary Details F.Y. 2020-21 | H1: DELHI
C2: Basic Salary + DA | D2: :- | E2: 0 | F2: Children Education Allowance * | G2: :- | H2: 0
C3: House Rent Allowance - HRA | D3: :- | E3: 0 | F3: Children Hostel allowance * | G3: :- | H3: 0
C4: Medical Allowance | D4: :- | E4: 0 | F4: Washing Allowance * | G4: :- | H4: 0
C5: Conveyance Allowance | D5: :- | E5: 0 | F5: Uniform Allowance * | G5: :- | H5: 0
C6: Special Allowance | D6: :- | E6: 0 | F6: Sum of All Reimb. Allowances * | G6: :- | H6: 0
C7: Other Allowance | D7: :- | E7: 0 | F7: Sum of All Other Allowances | G7: :- | H7: 0
C8: Leave Travel Allowance - LTA | D8: :- | E8: 0 | F8: Sum of All Annual Perks (If Any) | G8: :- | H8: =MAX(E26-750000,0) -> 0
C9: Meal (Voucher) Allowance * | D9: :- | E9: 0 | F9: Monthly House Rent Paid | G9: :- | H9: 0
C10: NPS Employer Contribution | D10: :- | E10: 0 | F10: Select Rent Location | G10: :- | H10: Metro City
C11: Total Monthly Gross Salary :- | F11: =SUM(E2:E10,H2:H7) -> 0
C13: Taxability & Calculation as per old and New Tax Regime | F13: Old | H13: New
C14: Gross Annual Salary Income (Salary + Allowances + Perks) : | F14: =ROUND((F11*12+H8),0) -> 0 | H14: =ROUND((F11*12+H8),0) -> 0
C15: Less: Official and Reimbursement Non Taxable Allowances* : | F15: =ROUND(SUM(MIN(E9,2200),MIN(H2,200),MIN(H3,600),H4,H5,H6)*12,0) -> 0 | H15: =ROUND(SUM(E9,H6)*12,0) -> 0
C16: Less: Tax on Employment (Professional Tax) : | F16: =IF(F14>12,IFERROR(VLOOKUP($H$1,$C$78:$E$116,3,0),0),0) -> 0 | H16: 0
C17: Less: Standard deduction : | F17: =MAX(MIN(F14,50000),0) -> 0 | H17: 0
C18: Auto Calculation as per Rent amount | E18: Less: HRA Exemption : | F18: =E122 -> 0 | H18: 0
C19: Amount of LTA Travel Bills (Annually) | E19: Less: LTA Exemption : | F19: =MIN((E8*12),150000) -> 0 | H19: 0
C20: Income from Salary : | F20: =ROUND(F14-F15-F16-F17-F18-F19,0) -> 0 | H20: =ROUND(H14-H15,0) -> 0
C21: Less: Loss from House Property u/s(24) : | F21: 0 | H21: 0
C22: Add: Income from House Property : | F22: 0 | H22: =F22 -> 0
C23: Add: Income from Other sources : | F23: 0 | H23: =F23 -> 0
C24: Gross Total Income : | F24: =ROUND(F20+F21+F22+F23,0) -> 0 | H24: =ROUND(H20+H22+H23,0) -> 0
C25: Investments U/S 80C & 80CCC
C26: Current Employer - PF | D26: : | E26: 0
C27: Pervious Employer - PF | D27: : | E27: 0
C28: Voluntary Provident Fund - VPF | D28: : | E28: 0
C29: Life Insurance Premiums - LIP | D29: : | E29: 0
C30: Public Provident Fund - PPF | D30: : | E30: 0
C31: Children Education Tuition Fees - CEF | D31: : | E31: 0
C32: Pension Funds – Section 80CCC | D32: : | E32: 0
C33: Bank fixed deposits (5-Yr) - FD | D33: : | E33: 0
C34: Unit linked Insurance Plan - ULIP | D34: : | E34: 0
C35: Home Loan Principal Repayment - HLP | D35: : | E35: 0
C36: Equity Linked Savings Scheme - ELSS | D36: : | E36: 0
C37: National Savings Certificate - NSC | D37: : | E37: 0
C38: Stamp Duty and Registration Charges | D38: : | E38: 0
C39: Other Investments E.g. Sukanya Account | D39: : | E39: 0
C40: Total Investments U/S 80C & 80CCC | E40: =SUM(E26:E39) -> 0 | F40: =MIN(E40,150000) -> 0 | H40: -
C41: Deduction u/s 80D | F41: 0 | H41: 0
C42: Deduction u/s 80CCD(1B) | F42: 0 | H42: 0
C43: Deduction u/s 80CCD2 | F43: =ROUND(MIN(((E2*12)*10%),E10*12),0) -> 0 | H43: =F43 -> 0
C44: Deduction u/s 80DD | F44: 0 | H44: 0
C45: Deduction u/s 80DDB | F45: 0 | H45: 0
C46: Deduction u/s 80E | F46: 0 | H46: 0
C47: Deduction u/s 80EE | F47: 0 | H47: 0
C48: Deduction u/s 80EEA | F48: 0 | H48: 0
C49: Deduction u/s 80G | F49: 0 | H49: 0
C50: Deduction u/s 80TTA | F50: 0 | H50: 0
C51: Deduction u/s 80U | F51: 0 | H51: 0
C52: Total Deduction U/C VIA | F52: =F40+SUM(MIN(F41,75000),MIN(F42,50000),F43,MIN(F44,125000),MIN(F45,125000),F46,MIN(F47,50000),MIN(F48,150000),F49,MIN(F50,10000),MIN(F51,125000)) -> 0 | H52: =SUM(H41:H51) -> 0
E54: Taxable Income | F54: =MAX((F24-F52),0) -> 0 | H54: =MAX((H24-H52),0) -> 0
E55: Income Tax | F55: =ROUND(IF(F13="Old",IF(C1="General",IF(F54<=250000,0,IF(F54<=500000,(F54-250000)*5%,IF(F54<=1000000,(F54-500000)*20%+12500,(F54-1000000)*30%+112500))),IF(F54<=300000,0,IF(F54<=500000,(F54-300000)*5%,IF(F54<=1000000,(F54-500000)*20%+10000,(F54-1000000)*30%+110000)))),IF(F54<=250000,0,IF(F54<=500000,(F54-250000)*5%,IF(F54<=750000,(F54-500000)*10%+12500,IF(F54<=1000000,(F54-750000)*15%+12500+25000,IF(F54<=1250000,(F54-1000000)*20%+12500+25000+37500,IF(F54<=1500000,(F54-1250000)*25%+12500+25000+37500+50000,(F54-1500000)*30%+12500+25000+37500+50000+62500))))))),0) -> 0 | H55: =ROUND(IF(H13="Old",IF(E1="General",IF(H54<=250000,0,IF(H54<=500000,(H54-250000)*5%,IF(H54<=1000000,(H54-500000)*20%+12500,(H54-1000000)*30%+112500))),IF(H54<=300000,0,IF(H54<=500000,(H54-300000)*5%,IF(H54<=1000000,(H54-500000)*20%+10000,(H54-1000000)*30%+110000)))),IF(H54<=250000,0,IF(H54<=500000,(H54-250000)*5%,IF(H54<=750000,(H54-500000)*10%+12500,IF(H54<=1000000,(H54-750000)*15%+12500+25000,IF(H54<=1250000,(H54-1000000)*20%+12500+25000+37500,IF(H54<=1500000,(H54-1250000)*25%+12500+25000+37500+50000,(H54-1500000)*30%+12500+25000+37500+50000+62500))))))),0) -> 0
E56: Less: Rebate 87A | F56: =IF(F54>500000,0,MIN(F55,12500)) -> 0 | H56: =IF(H54>500000,0,MIN(H55,12500)) -> 0
E57: Balance Tax Liability | F57: =F55-F56 -> 0 | H57: =H55-H56 -> 0
E58: Add: Surcharge | F58: =ROUND(IF(F13="Old",IF(C1="General",IF(F54<=5000000,0,IF(F54<=5195890,(F54-5000000)*70%,IF(F54<=10000000,F57*10%,IF(F54<=10214700,(F54-10000000)*70%+281250,IF(F54<=20000000,F57*15%,IF(F54<=20930000,(F54-20000000)*70%+871875,IF(F54<=50000000,F57*25%,IF(F54<=53017830,(F54-50000000)*70%+3703125,F57*37%)))))))),IF(F54<=5000000,0,IF(F54<=5195530,(F54-5000000)*70%,IF(F54<=10000000,F57*10%,IF(F54<=10214510,(F54-10000000)*70%+281000,IF(F54<=20000000,F57*15%,IF(F54<=20929600,(F54-20000000)*70%+871500,IF(F54<=50000000,F57*25%,IF(F54<=53017320,(F54-50000000)*70%+3702500,F57*37%))))))))),IF(F54<=5000000,0,IF(F54<=5184700,(F54-5000000)*70%,IF(F54<=10000000,F57*10%,IF(F54<=10208970,(F54-10000000)*70%+273750,IF(F54<=20000000,F57*15%,IF(F54<=20918000,(F54-20000000)*70%+860625,IF(F54<=50000000,F57*25%,IF(F54<=53002547,(F54-50000000)*70%+3684375,F57*37%))))))))),0) -> 0 | H58: =ROUND(IF(H13="Old",IF(E1="General",IF(H54<=5000000,0,IF(H54<=5195890,(H54-5000000)*70%,IF(H54<=10000000,H57*10%,IF(H54<=10214700,(H54-10000000)*70%+281250,IF(H54<=20000000,H57*15%,IF(H54<=20930000,(H54-20000000)*70%+871875,IF(H54<=50000000,H57*25%,IF(H54<=53017830,(H54-50000000)*70%+3703125,H57*37%)))))))),IF(H54<=5000000,0,IF(H54<=5195530,(H54-5000000)*70%,IF(H54<=10000000,H57*10%,IF(H54<=10214510,(H54-10000000)*70%+281000,IF(H54<=20000000,H57*15%,IF(H54<=20929600,(H54-20000000)*70%+871500,IF(H54<=50000000,H57*25%,IF(H54<=53017320,(H54-50000000)*70%+3702500,H57*37%))))))))),IF(H54<=5000000,0,IF(H54<=5184700,(H54-5000000)*70%,IF(H54<=10000000,H57*10%,IF(H54<=10208970,(H54-10000000)*70%+273750,IF(H54<=20000000,H57*15%,IF(H54<=20918000,(H54-20000000)*70%+860625,IF(H54<=50000000,H57*25%,IF(H54<=53002547,(H54-50000000)*70%+3684375,H57*37%))))))))),0) -> 0
E59: Total Tax | F59: =F58+F57 -> 0 | H59: =H58+H57 -> 0
E60: Add: Edu. Health Cess | F60: =ROUND(F59*4%,0) -> 0 | H60: =ROUND(H59*4%,0) -> 0
E61: Net Annual Tax | F61: =F60+F59 -> 0 | H61: =H60+H59 -> 0
F62: Save Tax as per New Slab | H62: =MAX((F61-H61),0) -> 0
C64: This Excel Utility Originally Prepared by AKumar and download from www.payrollpedia.org
C78: STATE NAME | E78: Annual P.Tax | H78: STATE NAME
C79: ANDHRA PRADESH | E79: 2400 | H79: ANDHRA PRADESH
C80: BIHAR | E80: 2500 | H80: BIHAR
C81: GUJRAT | E81: 2400 | H81: GUJRAT
C82: KARNATAKA | E82: 2400 | H82: KARNATAKA
C83: MAHARASHTRA | E83: 2500 | H83: MAHARASHTRA
C84: DELHI | E84: 0 | H84: DELHI
C85: UTTAR PRADESH | E85: 0 | H85: UTTAR PRADESH
C86: WEST BENGAL | E86: 2400 | H86: WEST BENGAL
C87: ARUNACHAL PRADESH | E87: 0 | H87: ARUNACHAL PRADESH
C88: ANDAMAN & NICOBAR | E88: 0 | H88: ANDAMAN & NICOBAR
C89: ASSAM | E89: 2500 | H89: ASSAM
C90: CHHATTISGARH | E90: 0 | H90: CHHATTISGARH
C91: CHANDIGARH | E91: 0 | H91: CHANDIGARH
C92: GOA | E92: 0 | H92: GOA
C93: HARYANA | E93: 0 | H93: HARYANA
C94: HIMACHAL PRADESH | E94: 0 | H94: HIMACHAL PRADESH
C95: JAMMU & KASHMIR | E95: 0 | H95: JAMMU & KASHMIR
C96: JHARKHAND | E96: 2500 | H96: JHARKHAND
C97: KERALA | E97: 2400 | H97: KERALA
C98: MADHYA PRADESH | E98: 2500 | H98: MADHYA PRADESH
C99: MANIPUR | E99: 2500 | H99: MANIPUR
C100: MEGHALAYA | E100: 2500 | H100: MEGHALAYA
C101: MIZORAM | E101: 2400 | H101: MIZORAM
C102: NAGALAND | E102: 2400 | H102: NAGALAND
C103: ORRISSA | E103: 2500 | H103: ORRISSA
C104: PUDUCHERRY | E104: 0 | H104: PUDUCHERRY
C105: PUNJAB | E105: 2400 | H105: PUNJAB
C106: RAJASTHAN | E106: 0 | H106: RAJASTHAN
C107: SIKKIM | E107: 0 | H107: SIKKIM
C108: TELANGANA | E108: 2400 | H108: TELANGANA
C109: TAMILNADU | E109: 2500 | H109: TAMILNADU
C110: TRIPURA | E110: 2500 | H110: TRIPURA
C111: UTTARANCHAL | E111: 0 | H111: UTTARANCHAL
C112: DADRA AND NAGAR HAVELI | E112: 0 | H112: DADRA AND NAGAR HAVELI
C113: DAMAN AND DIU | E113: 0 | H113: DAMAN AND DIU
C114: LAKSHADWEEP | E114: 0 | H114: LAKSHADWEEP
C117: HRA Calculation
C118: 1. Step 1 | E118: =E3 -> 0
C119: 2. Rent - basic 10% | E119: =H9-(E2*10%) -> 0
C120: 3. Step 50 or 40% | E120: =IF(H10="Metro City",E2*50%,E2*40%) -> 0
C121: Exemption | E121: =MAX(MIN(E118:E120),0) -> 0
C122: Annual | E122: =ROUND(E121*12,0) -> 0

Sheet Income Slabs (hidden)
B2: >>>> Old Tax Slabs
C3: SLAB | D3: STATUS | E3: Income From | F3: Income Up to | G3: Tax Rate | H3: Tax Amount | J3: SLAB | K3: STATUS | L3: Income From | M3: Income Up to | N3: Surcharge | O3: Tax Amount
C4: OLD SLAB | D4: General | E4: 0 | F4: 250000 | G4: 0 | H4: 0 | J4: Old Slab | K4: General | L4: 0 | M4: 5000000 | N4: 0 | O4: 0
C5: OLD SLAB | D5: General | E5: =F4+1 -> 250001 | F5: 500000 | G5: 5 | H5: =ROUND((F5-E5)*G5%,0) -> 12500 | J5: Old Slab | K5: General | L5: =+M4+1 -> 5000001 | M5: 5195890 | N5: Marginal | O5: 0
C6: OLD SLAB | D6: General | E6: =F5+1 -> 500001 | F6: 1000000 | G6: 20 | H6: =ROUND((F6-E6)*G6%,0) -> 100000 | J6: Old Slab | K6: General | L6: =+M5+1 -> 5195891 | M6: 10000000 | N6: 10 | O6: 0
C7: OLD SLAB | D7: General | E7: 1000001 | F7: > | G7: 30 | H7: =H6+H5 -> 112500 | J7: Old Slab | K7: General | L7: =+M6+1 -> 10000001 | M7: 10214700 | N7: Marginal | O7: 281250
J8: Old Slab | K8: General | L8: 10214701 | M8: 20000000 | N8: 15 | O8: 0
C9: OLD SLAB | D9: Senior Citizen | E9: 0 | F9: 300000 | G9: 0 | H9: 0 | J9: Old Slab | K9: General | L9: 20000001 | M9: 20930000 | N9: Marginal | O9: 871875
C10: OLD SLAB | D10: Senior Citizen | E10: =F9+1 -> 300001 | F10: 500000 | G10: 5 | H10: =ROUND((F10-E10)*G10%,0) -> 10000 | J10: Old Slab | K10: General | L10: 20930001 | M10: 50000000 | N10: 25 | O10: 0
C11: OLD SLAB | D11: Senior Citizen | E11: =F10+1 -> 500001 | F11: 1000000 | G11: 20 | H11: =ROUND((F11-E11)*G11%,0) -> 100000 | J11: Old Slab | K11: General | L11: 50000001 | M11: 53017830 | N11: Marginal | O11: 3703125
C12: OLD SLAB | D12: Senior Citizen | E12: 1000001 | F12: > | G12: 30 | H12: =H11+H10 -> 110000 | J12: Old Slab | K12: General | L12: 53017831 | M12: > | N12: 37 | O12: 0
C15: Additional Tax Slab | J15: SLAB | K15: STATUS | L15: Income From | M15: Income Up to | N15: Surcharge | O15: Tax Amount
C16: SLAB | D16: Income Up to | E16: Tax | F16: Surcharge | G16: Cess | H16: Add Tax | J16: Old Slab | K16: Senior Citizen | L16: 0 | M16: 5000000 | N16: 0 | O16: 0
C17: Old Slab | D17: 250000 | E17: 0 | F17: =E17*0% -> 0 | G17: =(E17+F17)*4% -> 0 | H17: =G17+F17+E17 -> 0 | J17: Old Slab | K17: Senior Citizen | L17: =+M16+1 -> 5000001 | M17: 5195530 | N17: Marginal | O17: 0
C18: Old Slab | D18: 500000 | E18: 5 | F18: =E18*0% -> 0 | G18: =(E18+F18)*4% -> 0.2 | H18: =G18+F18+E18 -> 5.2 | J18: Old Slab | K18: Senior Citizen | L18: 5195531 | M18: 10000000 | N18: 10 | O18: 0
C19: Old Slab | D19: 1000000 | E19: 20 | F19: 0 | G19: 0.8 | H19: 20.8 | J19: Old Slab | K19: Senior Citizen | L19: 10000001 | M19: 10214510 | N19: Marginal | O19: 281000
C20: Old Slab | D20: 5000000 | E20: 30 | F20: 0 | G20: =(E20+F20)*4% -> 1.2 | H20: =G20+F20+E20 -> 31.2 | J20: Old Slab | K20: Senior Citizen | L20: 10214511 | M20: 20000000 | N20: 15 | O20: 0
C21: Old Slab | D21: 10000000 | E21: 30 | F21: =E21*10% -> 3 | G21: =(E21+F21)*4% -> 1.32 | H21: =G21+F21+E21 -> 34.32 | J21: Old Slab | K21: Senior Citizen | L21: 20000001 | M21: 20929600 | N21: Marginal | O21: 871500
C22: Old Slab | D22: 20000000 | E22: 30 | F22: =E22*15% -> 4.5 | G22: 1.38 | H22: =G22+F22+E22 -> 35.88 | J22: Old Slab | K22: Senior Citizen | L22: 20929601 | M22: 50000000 | N22: 25 | O22: 0
C23: Old Slab | D23: 50000000 | E23: 30 | F23: =E23*25% -> 7.5 | G23: 1.5 | H23: =G23+F23+E23 -> 39 | J23: Old Slab | K23: Senior Citizen | L23: 50000001 | M23: 53017320 | N23: Marginal | O23: 3702500
C24: Old Slab | D24: > 50000000 | E24: 30 | F24: =E24*37% -> 11.1 | G24: 1.644 | H24: =G24+F24+E24 -> 42.744 | J24: Old Slab | K24: Senior Citizen | L24: 53017321 | M24: > | N24: 37 | O24: 0
B29: >>>> New Tax Slabs
C30: SLAB | D30: STATUS | E30: Income From | F30: Income Up to | G30: Tax Rate | H30: Tax Amount | J30: SLAB | K30: STATUS | L30: Income From | M30: Income Up to | N30: Surcharge | O30: Tax Amount
C31: New Slab | D31: General | E31: 0 | F31: 250000 | G31: 0 | H31: 0 | J31: New Slab | K31: All | L31: 0 | M31: 5000000 | N31: 0 | O31: 0
C32: New Slab | D32: General | E32: =F31+1 -> 250001 | F32: =F31+250000 -> 500000 | G32: 5 | H32: =ROUND((F32-E32)*G32%,0) -> 12500 | J32: New Slab | K32: All | L32: =+M31+1 -> 5000001 | M32: 5184700 | N32: Marginal | O32: 0
C33: New Slab | D33: General | E33: =F32+1 -> 500001 | F33: =F32+250000 -> 750000 | G33: 10 | H33: =ROUND((F33-E33)*G33%,0) -> 25000 | J33: New Slab | K33: All | L33: =+M32+1 -> 5184701 | M33: 10000000 | N33: 10 | O33: 0
C34: New Slab | D34: General | E34: =F33+1 -> 750001 | F34: =F33+250000 -> 1000000 | G34: 15 | H34: =ROUND((F34-E34)*G34%,0) -> 37500 | J34: New Slab | K34: All | L34: =+M33+1 -> 10000001 | M34: 10208970 | N34: Marginal | O34: 273750
C35: New Slab | D35: General | E35: =F34+1 -> 1000001 | F35: =F34+250000 -> 1250000 | G35: 20 | H35: =ROUND((F35-E35)*G35%,0) -> 50000 | J35: New Slab | K35: All | L35: 10208971 | M35: 20000000 | N35: 15 | O35: 0
C36: New Slab | D36: General | E36: 1250001 | F36: =F35+250000 -> 1500000 | G36: 25 | H36: =ROUND((F36-E36)*G36%,0) -> 62500 | J36: New Slab | K36: All | L36: 20000001 | M36: 20918000 | N36: Marginal | O36: 860625
C37: New Slab | D37: General | E37: 1500001 | F37: > | G37: 30 | H37: =SUM(H32:H36) -> 187500 | J37: New Slab | K37: All | L37: 20918001 | M37: 50000000 | N37: 25 | O37: 0
J38: New Slab | K38: All | L38: 50000001 | M38: 53002547 | N38: Marginal | O38: 3684375
J39: New Slab | K39: All | L39: 53002548 | M39: > | N39: 37 | O39: 0
C41: Additional Tax Slab
C42: SLAB | D42: Income Up to | E42: Tax | F42: Surcharge | G42: Cess | H42: Add Tax
C43: New Slab | D43: 250000 | E43: 0 | F43: =E43*0% -> 0 | G43: =(E43+F43)*4% -> 0 | H43: =G43+F43+E43 -> 0
C44: New Slab | D44: =D43+250000 -> 500000 | E44: 5 | F44: =E44*0% -> 0 | G44: =(E44+F44)*4% -> 0.2 | H44: =G44+F44+E44 -> 5.2
C45: New Slab | D45: =D44+250000 -> 750000 | E45: 10 | F45: 0 | G45: 0.4 | H45: 10.4
C46: New Slab | D46: 1000000 | E46: 15 | F46: 0 | G46: 0.6 | H46: 15.6
C47: New Slab | D47: 1250000 | E47: 20 | F47: 0 | G47: 0.8 | H47: 20.8
C48: New Slab | D48: 1500000 | E48: 25 | F48: 0 | G48: 1 | H48: 26
C49: New Slab | D49: 5000000 | E49: 30 | F49: 0 | G49: =(E49+F49)*4% -> 1.2 | H49: =G49+F49+E49 -> 31.2
C50: New Slab | D50: 10000000 | E50: 30 | F50: =E50*10% -> 3 | G50: =(E50+F50)*4% -> 1.32 | H50: =G50+F50+E50 -> 34.32
C51: New Slab | D51: 20000000 | E51: 30 | F51: =E51*15% -> 4.5 | G51: 1.38 | H51: =G51+F51+E51 -> 35.88
C52: New Slab | D52: 50000000 | E52: 30 | F52: =E52*25% -> 7.5 | G52: 1.5 | H52: =G52+F52+E52 -> 39
C53: New Slab | D53: > 50000000 | E53: 30 | F53: =E53*37% -> 11.1 | G53: 1.644 | H53: =G53+F53+E53 -> 42.744
